bitfinex/quotes_SOLUSD_20260305
["timestamp","ask_amount","ask_price","bid_price","bid_amount"]
[1772718339385,27.49397881,90.929,90.858,1.19558813]
[1772718340487,0.28432314,90.928,90.863,1.19558813]
[1772718340674,0.28432314,90.928,90.864,1.19558813]
[1772718341365,38.49241698,90.927,90.866,1.19558813]
[1772718342388,38.49241698,90.927,90.866,1.47991127]
[1772718342882,10.96289945,90.92,90.866,1.19558813]
[1772718343067,38.49241698,90.927,90.866,1.19558813]
[1772718343382,27.49458356,90.927,90.868,1.19558813]
[1772718345389,27.49458356,90.927,90.867,38.51783374]
[1772718345390,0.28432314,90.926,90.87,1.19558813]
[1772718346576,0.28432314,90.909,90.855,1.19558813]
[1772718346775,0.28432314,90.909,90.848,11.00739697]
[1772718346776,0.28432314,90.899,90.848,11.00739697]
[1772718346971,0.28432314,90.899,90.849,1.19558813]
[1772718347583,0.28432314,90.909,90.849,1.19558813]
[1772718348576,0.28432314,90.907,90.851,1.19558813]
[1772718350572,27.49699571,90.92,90.855,38.52292113]
[1772718350882,27.49699571,90.92,90.856,1.19558813]
[1772718351082,27.49699571,90.92,90.856,1.47991127]
[1772718352178,38.49157033,90.929,90.856,1.47991127]
[1772718352497,38.49157033,90.929,90.858,1.19558813]
[1772718354594,38.77674012,90.927,90.86,1.19558813]
[1772718356494,38.77674012,90.927,90.862,1.19558813]
[1772718357401,5.74286356,90.928,90.867,1.19558813]
[1772718357599,38.47887509,90.959,90.867,1.47991127]
[1772718357798,5.74130907,90.954,90.867,1.47991127]
[1772718358507,38.48141347,90.953,90.871,3.69383402]
[1772718358703,38.48141347,90.953,90.872,1.47991127]
[1772718360500,10.94576997,90.95,90.872,1.47991127]
[1772718362383,38.4831059,90.949,90.877,1.19558813]
[1772718362584,0.28432314,90.948,90.877,1.47991127]
[1772718362905,10.94576997,90.93,90.877,1.19558813]
[1772718363900,10.94576997,90.93,90.879,1.19558813]
[1772718363901,38.49157033,90.929,90.879,1.19558813]
[1772718364311,38.49157033,90.929,90.874,1.19558813]
[1772718365886,38.49157033,90.929,90.875,11.00412654]
[1772718366390,0.28432314,90.928,90.876,1.19558813]
[1772718368712,0.28432314,90.928,90.861,27.51447848]
[1772718368713,0.28432314,90.926,90.878,1.19558813]
[1772718369100,38.49241698,90.927,90.878,1.19558813]
[1772718369409,38.49241698,90.927,90.88,1.19558813]
[1772718372398,38.48733766,90.939,90.882,1.19558813]
[1772718374587,3.69383402,90.947,90.884,1.19558813]
[1772718375517,10.94576997,90.94,90.884,1.19558813]
[1772718375691,10.94576997,90.93,90.881,30.5]
[1772718375890,3.69383402,90.947,90.881,30.5]
[1772718375891,10.94576997,90.92,90.881,30.5]
[1772718376109,10.94576997,90.92,90.871,30.5]
[1772718376110,0.28432314,90.919,90.871,30.5]
[1772718376308,0.28432314,90.919,90.868,1.19558813]
[1772718377806,0.28432314,90.909,90.868,1.19558813]
[1772718378114,10.94576997,90.9,90.856,12.20196715]
[1772718378301,10.94576997,90.9,90.857,1.19558813]
[1772718378495,10.94576997,90.89,90.849,1.19558813]
[1772718378701,10.94576997,90.88,90.842,1.19558813]
[1772718379415,10.94576997,90.88,90.828,11.00982076]
[1772718379416,10.94576997,90.88,90.829,1.19558813]
[1772718380116,38.51274771,90.879,90.831,1.19558813]
[1772718381019,192.9994789,91.329,90.831,1.19558813]
[1772718381020,1.18970074,90.932,90.831,1.09276948]
[1772718381215,1.18970074,90.932,90.83,214.68677748]
[1772718381216,1.18970074,90.932,90.835,1.09276948]
[1772718381417,10.94576997,90.95,90.858,3.69383402]
[1772718381710,10.94576997,90.95,90.845,3.69383402]
[1772718381711,10.94576997,90.92,90.862,1.23493105]
[1772718381916,10.94576997,90.92,90.864,0.28432314]
[1772718382223,10.94576997,90.92,90.865,1.09276948]
[1772718382596,7.05869742,90.919,90.865,1.09276948]
[1772718382796,7.05869742,90.918,90.865,1.09276948]
[1772718383004,10.94576997,90.92,90.865,1.09276948]
[1772718383203,7.03156519,90.919,90.865,1.09276948]
[1772718383399,1.18970074,90.926,90.865,1.09276948]
[1772718383598,1.18970074,90.924,90.865,1.09276948]
[1772718383816,1.18970074,90.922,90.865,1.09276948]
[1772718384017,1.18970074,90.931,90.868,1.09276948]
[1772718384316,1.18970074,90.929,90.868,1.09276948]
[1772718385121,1.18970074,90.927,90.868,1.09276948]
[1772718386220,30.03057687,91.062,90.869,12.1989913]
[1772718386221,1.18710596,90.899,90.869,12.1989913]
[1772718386407,1.18710596,90.899,90.869,11.00485314]
[1772718386718,1.18710596,90.899,90.87,1.19413816]
[1772718388020,1.18710596,90.899,90.872,1.19413816]
[1772718390609,1.18710596,90.899,90.873,11.00436873]
[1772718390806,1.18710596,90.899,90.836,44.03517115]
[1772718390807,1.18710596,90.879,90.792,44.05670189]
[1772718391019,11.00130739,90.899,90.792,44.05670189]
[1772718391020,1.18710596,90.869,90.829,1.19413816]
[1772718391220,1.18710596,90.869,90.83,11.00957833]
[1772718391612,1.18710596,90.859,90.82,1.19413816]
[1772718392737,1.18710596,90.849,90.807,1.19413816]
[1772718393023,1.18710596,90.839,90.808,11.01224561]
[1772718394238,1.18710596,90.839,90.808,12.20638377]
[1772718397410,0.28432314,90.862,90.809,1.19413816]
[1772718397411,1.18710596,90.848,90.809,1.19413816]
[1772718397617,1.18710596,90.839,90.808,11.01224561]
[1772718397816,1.18710596,90.829,90.765,1.19413816]
[1772718398130,1.18710596,90.829,90.772,1.19413816]
[1772718398517,1.18710596,90.819,90.772,1.19413816]
[1772718399128,1.18710596,90.809,90.772,1.19413816]
[1772718399533,1.18710596,90.807,90.769,11.01697716]
[1772718401228,11.01224561,90.808,90.769,11.01697716]
[1772718401229,1.18710596,90.799,90.769,11.01697716]
[1772718401533,1.18710596,90.798,90.758,27.54569519]
[1772718402517,1.18710596,90.798,90.759,1.19413816]
[1772718403916,0.28432314,90.822,90.739,0.28432314]
[1772718403917,1.18710596,90.816,90.761,1.19413816]
[1772718404229,1.18710596,90.839,90.764,1.4784613]
[1772718405917,1.18710596,90.839,90.768,3.69383402]
[1772718406138,1.18710596,90.839,90.769,1.4784613]
[1772718406719,1.18710596,90.837,90.769,1.4784613]
[1772718407931,1.18710596,90.835,90.774,1.4784613]
[1772718408563,1.18710596,90.829,90.774,1.19413816]
[1772718409939,1.15684124,90.835,90.776,1.49738835]
[1772718412025,1.15684124,90.833,90.778,1.49738835]
[1772718414326,1.15684124,90.833,90.78,1.21306521]
[1772718415346,1.15684124,90.863,90.783,1.49738835]
[1772718416249,10.94576997,90.86,90.783,1.49738835]
[1772718416438,1.15684124,90.857,90.788,1.49738835]
[1772718417753,1.15684124,90.863,90.788,1.49738835]
[1772718418440,1.15684124,90.863,90.79,1.49738835]
[1772718420032,1.15684124,90.863,90.795,1.49738835]
[1772718420346,1.15684124,90.864,90.795,1.49738835]
[1772718421234,104.9,90.917,90.797,1.28402462]
[1772718421534,0.1,90.96,90.797,1.28402462]
[1772718421535,0.1,90.96,90.806,3.69383402]
[1772718421736,0.1,90.96,90.822,4.82477569]
[1772718421945,0.1,90.96,90.844,4.82477569]
[1772718422127,0.1,90.96,90.872,3.69383402]
[1772718422325,0.1,90.96,90.884,1.21306521]
[1772718422653,0.1,90.96,90.892,1.21306521]
[1772718423369,0.1,91.0,90.908,4.85579544]
[1772718423370,1.15684124,90.987,90.908,4.85579544]
[1772718423649,1.15684124,90.987,90.923,1.16196142]
[1772718423951,1.15684124,90.985,90.928,1.30852117]
[1772718424134,1.15684124,90.985,90.928,1.45068274]
[1772718425544,0.1,91.0,90.933,1.49738835]
[1772718425953,0.1,91.0,90.937,3.69383402]
[1772718426249,0.1,91.0,90.938,1.49738835]
[1772718426454,0.1,91.0,90.943,1.21306521]
[1772718426754,11.06301923,91.03,90.949,3.69383402]
[1772718426755,0.1,91.03,90.949,3.69383402]
[1772718427054,0.1,91.03,90.973,1.21306521]
[1772718427936,0.1,91.03,90.977,3.69383402]
[1772718428132,0.1,91.03,90.978,1.21306521]
[1772718428337,0.1,91.03,90.978,1.49738835]
[1772718428739,1.15684124,91.042,90.978,1.49738835]
[1772718428945,1.15684124,91.042,90.983,1.49738835]
[1772718429250,1.15684124,91.039,90.983,1.49738835]
[1772718429453,0.1,91.06,90.984,1.21306521]
[1772718429653,11.08177467,91.06,90.984,1.35522678]
[1772718429860,22.0447939,91.06,90.984,1.35522678]
[1772718430058,22.0447939,91.06,90.988,3.69383402]
[1772718430245,11.08177467,91.06,90.989,1.21306521]
[1772718430548,22.0447939,91.06,90.989,1.21306521]
[1772718430738,10.96301923,91.05,90.989,1.21306521]
[1772718431149,0.28432314,91.059,90.989,1.21306521]
[1772718431355,10.96301923,91.05,90.989,1.21306521]
[1772718431659,1.15684124,91.039,90.989,1.21306521]
[1772718432158,1.15684124,91.037,90.99,39.67883067]
[1772718432456,1.15684124,91.037,90.991,1.21306521]
[1772718433141,0.1,91.06,90.995,1.21306521]
[1772718434364,0.1,91.06,91.0,1.49738835]
[1772718435454,0.46279975,91.059,91.0,1.21306521]
[1772718436369,0.46910977,91.057,91.005,1.21306521]
[1772718436560,0.47534177,91.056,91.005,1.21306521]
[1772718438450,0.48150028,91.053,91.006,38.45900269]
[1772718438763,0.48150028,91.053,91.006,39.6720679]
[1772718438976,0.48150028,91.053,91.007,1.27190961]
[1772718441172,0.5054209,91.051,91.009,1.27190961]
[1772718443160,0.5054209,91.051,91.011,1.27190961]
[1772718443365,0.1,91.06,91.011,1.27190961]
[1772718443581,0.1,91.06,91.014,1.27190961]
[1772718443770,0.1,91.08,91.03,1.27190961]
[1772718444068,0.6226796,91.08,91.03,1.27190961]
[1772718444452,0.5226796,91.078,91.03,1.27190961]
[1772718444854,0.66484117,91.078,91.01,38.45731237]
[1772718445071,0.66484117,91.078,91.013,1.27190961]
[1772718445072,0.52829754,91.067,91.013,1.27190961]
[1772718445460,0.52829754,91.067,91.013,1.55623275]
[1772718446675,0.54476005,91.076,91.013,1.55623275]
[1772718447173,0.54476005,91.074,91.016,1.31335328]
[1772718447473,0.54476005,91.079,91.016,1.31335328]
[1772718447662,0.54476005,91.079,91.018,1.59767642]
[1772718448377,11.5242394,91.079,91.018,1.59767642]
[1772718449082,0.54476005,91.079,91.018,1.59767642]
[1772718449305,11.07938177,91.08,90.992,61.3]
[1772718449306,0.55543228,91.077,91.023,1.59767642]
[1772718449777,0.55543228,91.077,91.023,1.31335328]
[1772718451479,0.5658702,91.075,91.025,1.31335328]
[1772718453482,0.57605427,91.073,91.027,1.31335328]
[1772718456370,0.59091919,91.071,91.029,1.31335328]
[1772718458483,0.59091919,91.071,90.999,87.91275894]
[1772718458484,0.60054899,91.059,90.985,1.31335328]
[1772718458785,0.60527816,91.029,90.978,1.31335328]
[1772718460458,0.60995118,91.027,90.98,1.31335328]
[1772718460884,0.61457438,91.019,90.979,10.99154749]
[1772718461384,0.61457438,91.019,90.971,1.31335328]
[1772718462167,0.61855519,91.009,90.971,1.31335328]
[1772718462784,0.61855519,91.009,90.962,2.71436233]
[1772718462785,0.62251101,90.999,90.962,2.71436233]
[1772718463484,0.62251101,90.999,90.963,10.99348086]
[1772718465094,10.98925251,90.998,90.964,1.31335328]
[1772718465474,0.63412168,90.996,90.962,2.71436233]
[1772718465675,0.63412168,90.989,90.962,2.71436233]
[1772718466193,0.91844482,90.979,90.923,1.31335328]
[1772718466401,126.37640386,90.998,90.923,1.31335328]
[1772718466402,0.63412168,90.969,90.923,1.31335328]
[1772718467276,18.04419341,91.041,90.891,64.10762857]
[1772718467277,0.63791021,90.989,90.925,1.59767642]
[1772718467580,0.63791021,90.987,90.925,1.59767642]
[1772718469174,0.64899226,90.979,90.927,1.32476358]
[1772718470772,0.94050805,90.985,90.927,1.32476358]
[1772718471185,0.65618491,90.984,90.927,1.32476358]
[1772718471386,10.99053673,90.988,90.929,1.60908672]
[1772718472188,11.65025016,90.988,90.929,1.60908672]
[1772718472575,0.66320399,91.008,90.932,1.60908672]
[1772718472901,0.66320399,91.043,90.938,1.60908672]
[1772718473079,0.66320399,91.043,90.957,8.51860971]
[1772718473278,10.98394147,91.042,90.964,1.32476358]
[1772718473479,10.98394147,91.042,90.97,1.32476358]
[1772718473774,10.98375961,91.044,90.97,1.32476358]
[1772718473975,0.6666271,91.069,90.984,1.60908672]
[1772718474192,0.6666271,91.069,90.984,1.32476358]
[1772718474384,0.6666271,91.068,90.984,1.32476358]
[1772718475177,0.6700297,91.066,90.984,1.32476358]
[1772718475376,0.6700297,91.062,90.988,3.69383402]
[1772718475578,0.6700297,91.062,90.989,1.32476358]
[1772718476075,0.67339552,91.059,90.989,1.32476358]
[1772718476280,38.43492965,91.063,90.989,1.32476358]
[1772718476281,0.67339552,91.048,90.989,1.32476358]
[1772718477006,0.67672414,91.039,90.989,1.32476358]
[1772718477369,0.28432314,91.049,90.991,1.32476358]
[1772718477370,0.67672414,91.037,90.991,1.32476358]
[1772718477574,10.98442408,91.038,90.991,1.32476358]
[1772718478672,10.98314865,91.049,90.994,1.32476358]
[1772718479006,0.1,91.08,90.994,1.60908672]
[1772718479007,0.68326716,91.075,90.994,1.60908672]
[1772718479678,11.06301923,91.08,90.994,1.60908672]
[1772718479679,38.43028745,91.074,90.995,38.46365184]
[1772718479878,0.68647574,91.073,90.999,1.32476358]
[1772718480195,10.98008213,91.074,90.999,1.32476358]
[1772718480403,10.9795886,91.079,90.999,1.60908672]
[1772718480582,10.9795886,91.079,91.004,1.60908672]
[1772718480897,10.9795886,91.079,91.01,1.32476358]
[1772718481212,39.11791272,91.079,91.01,1.32476358]
[1772718481501,0.68962574,91.059,91.01,1.32476358]
[1772718481687,0.68962574,91.059,91.012,1.32476358]
[1772718481888,0.69276129,91.057,91.014,1.32476358]
[1772718482089,0.69276129,91.057,91.015,62.62476358]
[1772718482399,0.69276129,91.057,91.016,1.32476358]
[1772718483083,0.69584051,91.072,91.018,1.60908672]
[1772718483986,10.98044382,91.071,91.02,1.32476358]
[1772718484182,0.69891673,91.07,91.02,1.32476358]
[1772718484485,0.69891673,91.07,91.005,104.4]
[1772718484486,0.69891673,91.059,91.008,1.32476358]
[1772718484692,0.69891673,91.059,91.009,1.32476358]
[1772718484897,0.70194397,91.074,91.012,1.32476358]
[1772718485105,10.91136618,91.07,91.012,1.32476358]
[1772718485413,0.70194397,91.059,91.013,61.3]
[1772718485580,0.70194397,91.059,91.01,1.32476358]
[1772718486184,0.70494887,91.057,91.011,10.9876828]
[1772718486396,0.70494887,91.057,91.012,1.32476358]
[1772718487385,38.43704012,91.058,91.012,1.32476358]
[1772718487592,0.7078841,91.073,91.015,1.60908672]
[1772718487593,0.71080474,91.073,91.015,1.60908672]
[1772718487794,11.691128,91.072,91.015,1.60908672]
[1772718488182,0.71080474,91.071,91.017,1.60908672]
[1772718490212,0.1,91.08,91.019,1.32476358]
[1772718490402,0.1,91.08,91.022,1.60908672]
[1772718492499,0.1,91.08,91.027,1.60908672]
[1772718492706,0.1,91.08,91.028,1.60908672]
[1772718494523,0.1,91.08,91.033,1.32476358]
[1772718494819,0.1,91.08,91.033,1.60908672]
[1772718495611,0.1,91.08,91.033,1.32476358]
[1772718495612,0.73298862,91.079,91.033,1.32476358]
[1772718496502,0.1,91.08,91.035,1.32476358]
[1772718499199,0.1,91.08,91.037,1.33387529]
[1772718500117,0.74588316,91.079,91.036,10.9846654]
[1772718500312,0.74588316,91.079,91.037,1.33387529]
[1772718501418,0.74839077,91.077,91.038,10.98442408]
[1772718501617,10.91136618,91.07,91.008,1.33387529]
[1772718501913,0.75085409,91.069,91.009,1.33387529]
[1772718504914,10.98080555,91.068,91.01,38.45731237]
[1772718505121,0.75804591,91.067,91.011,1.33387529]
[1772718506508,0.76275886,91.065,91.013,1.40094202]
[1772718507227,0.76505819,91.075,91.013,1.68526516]
[1772718507403,0.76505819,91.075,91.015,1.68526516]
[1772718508815,10.98008213,91.074,91.018,1.40094202]
[1772718509329,11.74966062,91.074,91.018,1.40094202]
[1772718509834,0.1,91.08,91.023,1.54310359]
[1772718510007,0.77179942,91.078,91.023,1.40094202]
[1772718511305,0.77399624,91.076,91.025,1.40094202]
[1772718512022,0.1,91.08,91.026,1.09858721]
[1772718512223,0.1,91.08,91.027,1.40094202]
[1772718512631,0.77829229,91.078,91.027,1.40094202]
[1772718513417,0.77829229,91.076,91.029,1.40094202]
[1772718514413,0.77829229,91.076,91.031,1.40094202]
[1772718514815,10.97996157,91.075,91.031,1.40094202]
[1772718516422,10.97996157,91.075,91.033,1.40094202]
[1772718517531,11.76861908,91.075,91.033,1.40094202]
[1772718517910,0.78865751,91.074,91.033,1.40094202]
[1772718518935,0.79065526,91.072,91.035,1.40094202]
[1772718519624,0.79065526,91.072,90.993,43.9592832]
[1772718519625,0.79265525,91.069,91.025,10.98599285]
[1772718519837,0.79265525,91.067,91.026,1.40094202]
[1772718521038,10.98104671,91.066,91.028,1.40094202]
[1772718521218,11.7756424,91.066,91.028,1.40094202]
[1772718521728,0.79519058,91.065,91.028,1.40094202]
[1772718522336,7.27547112,91.064,91.028,1.40094202]
[1772718522531,7.27547112,91.063,91.028,1.40094202]
[1772718522726,0.79579063,91.061,91.01,1.40094202]
[1772718523035,10.98201146,91.058,91.01,1.40094202]
[1772718523238,10.98201146,91.058,91.012,1.40094202]
[1772718523731,7.28390495,91.057,91.012,1.40094202]
[1772718523935,0.79579063,91.059,91.012,1.40094202]
[1772718524247,7.28490901,91.058,91.012,1.40094202]
[1772718524444,7.28490901,91.057,91.015,1.40094202]
[1772718524747,10.98032425,91.072,91.019,1.40094202]
[1772718524748,0.79694428,91.071,91.019,1.40094202]
[1772718524918,0.79694428,91.069,91.019,1.40094202]
[1772718525120,0.79694428,91.067,91.019,1.40094202]
[1772718525320,0.79694428,91.065,91.021,1.40094202]
[1772718525924,7.28519853,91.064,91.021,1.40094202]
[1772718526116,0.79694428,91.065,91.022,61.3]
[1772718526321,5.1939328,91.08,91.023,1.40094202]
[1772718526322,10.98046018,91.071,91.023,1.40094202]
[1772718526527,7.28350703,91.07,91.023,1.40094202]
[1772718526819,5.0939328,91.09,91.023,1.40094202]
[1772718526820,12.03639809,91.121,91.023,0.14216157]
[1772718527021,0.1,91.16,91.027,5.09477604]
[1772718527217,5.1939328,91.16,91.04,1.40094202]
[1772718527440,5.1939328,91.16,91.065,1.40094202]
[1772718527441,10.9720104,91.141,91.065,1.40094202]
[1772718527638,5.0939328,91.14,91.066,1.68526516]
[1772718527831,5.0939328,91.13,91.066,1.68526516]
[1772718528651,10.90299813,91.14,91.066,1.68526516]
[1772718529030,1.38637598,91.139,91.066,1.68526516]
[1772718529234,1.38637598,91.137,91.071,1.38572491]
[1772718530320,1.38637598,91.129,91.071,1.38572491]
[1772718532522,1.38637598,91.119,91.072,10.98032326]
[1772718533038,1.38637598,91.109,91.072,10.98032326]
[1772718534653,1.38637598,91.099,91.05,10.98297638]
[1772718535323,1.38637598,91.089,91.05,10.98297638]
[1772718536049,1.38637598,91.089,91.044,27.45922163]
[1772718536050,10.90299813,91.07,91.041,0.66681203]
[1772718536346,10.90299813,91.07,90.982,43.96452303]
[1772718536347,0.53818674,91.069,91.027,10.98573577]
[1772718536646,10.98080555,91.068,91.027,10.98573577]
[1772718536849,10.98080555,91.068,91.028,1.47999705]
[1772718538243,10.98028696,91.073,91.028,1.47999705]
[1772718538626,0.02037995,91.08,91.03,1.47999705]
[1772718538833,0.02037995,91.079,91.03,1.47999705]
[1772718540341,0.02701381,91.069,91.03,1.47999705]
[1772718540721,0.0335714,91.077,91.032,1.47999705]
[1772718541332,1.38637598,91.075,91.005,66.21476652]
[1772718541532,1.38637598,91.075,91.005,93.68578459]
[1772718543252,1.38637598,91.073,91.009,1.38572491]
[1772718544639,10.98032326,91.072,91.014,1.38572491]
[1772718544838,10.98032326,91.072,91.014,1.67004805]
[1772718546054,1.38637598,91.09,91.021,1.38572491]
[1772718546254,1.38637598,91.09,91.025,1.38572491]
[1772718546557,10.97827399,91.089,91.034,0.14216157]
[1772718546857,10.97827399,91.089,91.038,1.52788648]
[1772718547639,1.38637598,91.088,91.038,1.52788648]
[1772718549254,1.38637598,91.088,91.04,1.38572491]
[1772718549853,12.36489102,91.087,91.04,1.38572491]
[1772718550560,10.97806948,91.091,91.04,1.38572491]
[1772718550759,1.38637598,91.095,91.04,1.38572491]
[1772718550958,1.38637598,91.095,91.042,3.69383402]
[1772718551137,1.38637598,91.095,91.043,1.38572491]
[1772718551440,1.38637598,91.093,91.045,1.67004805]
[1772718551639,1.38637598,91.093,91.046,61.3]
[1772718551858,1.38637598,91.093,91.047,1.38572491]
[1772718554150,1.38637598,91.091,91.048,10.98321764]
[1772718554349,1.38637598,91.091,91.049,1.38572491]
[1772718556339,1.38637598,91.089,91.051,1.38572491]
[1772718558351,1.38637598,91.089,91.05,38.44041734]
[1772718558352,1.38637598,91.069,91.028,10.98563079]
[1772718558557,1.38637598,91.069,91.029,1.38572491]
[1772718558868,38.4243808,91.088,91.028,10.98563079]
[1772718558869,1.38637598,91.087,91.031,1.38572491]
[1772718559845,1.41900767,91.085,91.033,1.43079015]
[1772718560148,38.4252245,91.086,91.033,1.43079015]
[1772718560149,1.41900767,91.079,91.033,1.43079015]
[1772718561369,0.28432314,91.085,91.033,1.43079015]
[1772718561661,1.41900767,91.084,91.033,1.43079015]
[1772718562247,1.41900767,91.082,91.035,1.43079015]
[1772718563652,1.41900767,91.08,91.036,38.44632891]
[1772718563848,1.41900767,91.08,91.037,1.43079015]
[1772718564564,1.41900767,91.08,91.036,38.44632891]
[1772718564565,1.41900767,91.08,91.039,1.43079015]
[1772718564768,96.11718583,91.33,91.036,38.44632891]
[1772718564769,1.41900767,91.109,91.044,1.71511329]
[1772718564956,1.41900767,91.109,91.048,0.14216157]
[1772718565265,1.41900767,91.109,91.049,1.43079015]
[1772718565971,1.70333081,91.107,91.051,1.43079015]
[1772718566358,1.54925184,91.099,91.051,1.43079015]
[1772718567070,1.54925184,91.107,91.053,1.56590813]
[1772718567878,1.54925184,91.097,91.054,10.9824939]
[1772718568061,1.54925184,91.097,91.055,1.56590813]
[1772718570682,1.54925184,91.095,91.057,1.56590813]
[1772718572360,1.54925184,91.089,91.045,1.56590813]
[1772718572557,1.54925184,91.089,91.046,62.86590813]
[1772718572980,1.54925184,91.087,91.047,10.98333827]
[1772718573571,1.54925184,91.087,91.047,12.5492464]
[1772718574170,1.54925184,91.087,91.048,1.56590813]
[1772718575087,10.97863557,91.086,91.05,1.56590813]
[1772718576065,5.09340476,91.1,91.049,10.98309701]
[1772718576066,1.54925184,91.1,91.051,1.56590813]
[1772718576585,1.54925184,91.1,91.049,38.44083954]
[1772718576586,1.54925184,91.1,91.053,1.56590813]
[1772718576783,1.54925184,91.089,91.052,61.3]
[1772718577376,1.54925184,91.087,91.052,61.3]
[1772718578282,1.54925184,91.087,91.052,72.28267811]
[1772718578470,1.54925184,91.087,91.053,1.56590813]
[1772718579567,1.54925184,91.085,91.054,12.54840203]
[1772718579767,1.54925184,91.085,91.054,10.9824939]
[1772718579967,1.54925184,91.085,91.054,12.54840203]
[1772718580584,1.54925184,91.083,91.054,12.54840203]
[1772718582895,1.54925184,91.081,91.055,1.56590813]
[1772718583187,1.54925184,91.091,91.055,1.56590813]
[1772718583662,1.54925184,91.091,91.04,61.3]
[1772718583868,1.54925184,91.079,91.041,61.3]
[1772718584490,1.54925184,91.079,91.041,72.28406212]
[1772718584788,1.54925184,91.079,91.042,1.56590813]
[1772718585170,1.54925184,91.077,91.043,10.98382083]
[1772718585565,1.54925184,91.077,91.043,12.54972896]
[1772718586488,1.54925184,91.077,91.034,1.56590813]
[1772718586788,1.54925184,91.069,91.035,1.56590813]
[1772718587494,12.53005739,91.068,91.037,1.56590813]
[1772718587696,1.54925184,91.067,91.037,1.56590813]
[1772718588890,1.60238531,91.065,91.037,1.56590813]
[1772718589481,1.60238531,91.065,91.038,10.98442408]
[1772718589790,10.97947935,91.079,91.039,1.47581968]
[1772718589990,1.60238531,91.078,91.039,1.47581968]
[1772718591387,1.88670845,91.076,91.03,1.47581968]
[1772718591592,1.60238531,91.072,91.03,1.47581968]
[1772718591781,1.60238531,91.069,91.03,1.47581968]
[1772718591984,1.60238531,91.069,91.031,1.47581968]
[1772718592578,1.60238531,91.076,91.031,1.47581968]
[1772718592986,1.60238531,91.088,91.031,1.47581968]
[1772718593293,1.60238531,91.088,91.033,1.47581968]
[1772718593597,1.60238531,91.082,91.035,1.47581968]
[1772718597395,1.60238531,91.079,91.037,1.47581968]
[1772718597694,1.60238531,91.079,91.039,1.47581968]
[1772718600278,1.60238531,91.077,91.041,1.47581968]
[1772718600599,1.60238531,91.077,91.043,1.47581968]
[1772718601681,10.9795999,91.078,91.043,1.47581968]
[1772718602087,1.60238531,91.077,91.043,1.47581968]
[1772718602402,1.60238531,91.075,91.042,57.41745462]
[1772718603485,1.60238531,91.073,91.031,10.98526875]
[1772718604312,1.60238531,91.073,91.032,1.47581968]
[1772718604804,1.60238531,91.071,91.034,1.47581968]
[1772718607198,10.9805644,91.07,91.036,1.47581968]
[1772718607578,1.60238531,91.091,91.036,1.47581968]
[1772718609080,1.60238531,91.089,91.038,1.47581968]
[1772718609599,1.60238531,91.089,91.04,1.47581968]
[1772718609802,1.60238531,91.087,91.04,1.47581968]
[1772718609992,1.60238531,91.083,91.04,1.47581968]
[1772718610394,1.60238531,91.079,91.04,1.47581968]
[1772718614503,0.28432314,91.092,91.041,1.47581968]
[1772718614504,1.60238531,91.077,91.041,1.47581968]
[1772718614707,5.09331656,91.06,90.996,57.41745462]
[1772718614891,1.60238531,91.059,90.999,1.47581968]
[1772718615084,38.42859965,91.078,90.999,1.47581968]
[1772718615085,1.60238531,91.049,90.999,1.47581968]
[1772718615997,5.09331656,91.07,91.002,1.47581968]
[1772718616206,1.60238531,91.069,91.002,1.47581968]
[1772718616600,1.60238531,91.067,91.004,1.47581968]
[1772718616811,1.60238531,91.059,91.004,1.47581968]
[1772718617407,1.60238531,91.039,90.994,1.47581968]
[1772718617690,1.60238531,91.029,90.994,1.47581968]
[1772718617905,1.60238531,91.029,90.994,12.46546177]
[1772718618118,1.60238531,91.027,90.942,1.47581968]
[1772718618327,0.28432314,91.028,90.942,1.47581968]
[1772718618328,1.60238531,91.009,90.942,1.47581968]
[1772718618607,1.60238531,91.007,90.944,1.76014282]
[1772718618794,1.60238531,91.007,90.947,0.28432314]
[1772718618995,1.60238531,91.007,90.948,1.53490523]
[1772718620701,1.58928431,91.005,90.953,1.53490523]
[1772718623007,1.58928431,91.005,90.927,43.99103052]
[1772718623008,1.58928431,91.003,90.955,1.53490523]
[1772718625225,1.58928431,91.003,90.946,54.97765443]
[1772718625226,1.58928431,91.014,90.957,1.53490523]
[1772718625398,1.58928431,91.029,90.959,1.53490523]
[1772718625596,1.58928431,91.029,90.971,1.53490523]
[1772718625806,1.58928431,91.029,90.979,1.53490523]
[1772718627496,1.52269805,91.027,90.981,1.59979402]
[1772718629595,1.52269805,91.025,90.983,1.59979402]
[1772718630716,1.52269805,91.035,90.985,1.59979402]
[1772718630918,1.52269805,91.035,90.982,38.46914773]
[1772718630919,1.52269805,91.048,90.988,1.59979402]
[1772718631799,1.52269805,91.048,90.992,3.69383402]
[1772718632118,1.52269805,91.048,90.999,1.59979402]
[1772718634207,1.52269805,91.048,91.001,1.59979402]
[1772718636221,1.52269805,91.048,91.003,1.59979402]
[1772718636618,1.52269805,91.048,91.005,1.59979402]
[1772718637314,10.98322447,91.048,91.005,1.59979402]
[1772718637620,1.52269805,91.047,91.005,1.59979402]
[1772718638207,1.52269805,91.047,91.007,1.59979402]